Cogmind - Beta 11.1 @@@ ROGUE MODE // 2022.05.01 @ 16:28:28 // Winter2019/RPGLIKE Player: Kiks Result: Self-destructed Performance ------------- Evolutions (1) 500 Regions Visited (2) 400 Robots Destroyed (19) 95 Value Destroyed (262) 262 Prototype IDs (0) 0 Alien Tech Used (0) 0 Bonus (0) 0 TOTAL SCORE: 1257 Bonus ------- None Cogmind --------- Core Integrity 204/600 Matter 500/500 Energy 250/250 System Corruption 0% Temperature Cool (0) Movement Walking (120) Location -9/Materials Parts ------- > --- POWER (1) -------- Ion Engine > --- PROPULSION (2) --- Aluminum Leg Aluminum Leg > --- UTILITY (2) ------ Medium Matter Pod Medium Matter Pod > --- WEAPON (2) ------- Assault Rifle Assault Rifle > --- INVENTORY (3) ---- Tractor Beam Grenade Launcher Peak State ------------ > --- POWER ------------ Ion Engine > --- PROPULSION ------- Aluminum Leg Aluminum Leg > --- UTILITY ---------- Medium Matter Pod Medium Matter Pod > --- WEAPON ----------- Assault Rifle Assault Rifle > --- INVENTORY -------- (None) [Rating: 7] Favorites ----------- Power Ion Engine Engine Ion Engine Propulsion Aluminum Leg Leg Aluminum Leg Utility Medium Matter Pod Storage Medium Matter Pod Weapon Assault Rifle Ballistic Gun Assault Rifle Build | -11 -10 -9 ------- Run | Scr Mat Mat Slots Evolved 3 | 3 . . Power . | . . . Propulsion 1 | 1 . . Utility 1 | 1 . . Weapon 1 | 1 . . Parts Attached 7 | 5 2 . Power 1 | 1 . . Engine 1 | 1 . . Core . | . . . Reactor . | . . . Propulsion 2 | 2 . . Treads . | . . . Leg 2 | 2 . . Wheel . | . . . Hover . | . . . Flight . | . . . Utility 2 | . 2 . Device . | . . . Storage 2 | . 2 . Processor . | . . . Hackware . | . . . Protection . | . . . Artifact . | . . . Weapon 2 | 2 . . Energy Gun . | . . . Energy Cannon . | . . . Ballistic Gun 2 | 2 . . Ballistic Cannon . | . . . Launcher . | . . . Special Weapon . | . . . Impact Weapon . | . . . Slashing Weapon . | . . . Piercing Weapon . | . . . Special Melee Weapon . | . . . Unidentified Prototypes . | . . . Parts Lost . | . . . Power . | . . . Propulsion . | . . . Utility . | . . . Weapon . | . . . Highest Loss Streak . | . . . To Critical Strikes . | . . . Average Slot Usage (%) 98 | . 98 100 Engine 14 | . 14 14 Leg 28 | . 28 28 Storage 26 | . 26 28 Ballistic Gun 28 | . 28 28 Naked Turns . | . . . Heaviest Build 13 | 9 13 13 Greatest Support 20 | 20 20 20 Greatest Overweight (x) . | . . . Average Overweight (x) . | . . . Largest Inventory Capacity 3 | 3 3 3 Average Capacity 3 | 3 3 3 Most Carried 2 | . 2 2 Average Carried 1 | . 1 2 Final Capacity 3 | 3 3 3 Final Carried 2 | . 2 2 Class Distribution -------------------- 100% | Mutant Dominant Class ---------------- Mutant | -10/Materials Mutant | -9/Materials Resources | -11 -10 -9 ----------- Run | Scr Mat Mat Matter Collected 963 | 250 713 . Remotely . | . . . Salvage Created 647 | . 647 . Parts 45 | . 45 . Haulers Intercepted 2 | . 2 . Recyclers Shooed . | . . . Parts Field Recycled . | . . . Retrieved Matter . | . . . Parts Self-Destructed . | . . . Prevented . | . . . Kills | -11 -10 -9 ------- Run | Scr Mat Mat Combat Hostiles Destroyed 10 | . 10 . Guns 10 | . 10 . Classes Destroyed 8 | . 8 . Worker 2 | . 2 . Builder 1 | . 1 . Tunneler 1 | . 1 . Hauler 2 | . 2 . Recycler 1 | . 1 . Watcher 2 | . 2 . Swarmer 6 | . 6 . Grunt 4 | . 4 . Best Kill Streak 7 | . 7 . Combat Bots Only 4 | . 4 . Max Kills in Single Turn 2 | . 2 . Gunslinging . | . . . Exploded . | . . . Melee . | . . . Uniques/NPCs Destroyed . | . . . Combat | -11 -10 -9 -------- Run | Scr Mat Mat Damage Taken 490 | . 490 . Core 396 | . 396 . Absorbed by Shields . | . . . Redirected to Core 287 | . 287 . Core Remaining (%) 67 | 100 34 . Volleys Fired 83 | . 83 . Largest 2 | . 2 . Hottest 40 | . 40 . Shots Fired 166 | . 166 . Gun 166 | . 166 . Cannon . | . . . Launcher . | . . . Special . | . . . Kinetic 166 | . 166 . Thermal . | . . . Explosive . | . . . Electromagnetic . | . . . Robot Hit Streak 9 | . 9 . Robot Miss Streak 6 | . 6 . Penetration Max . | . . . Secondary Targets 3 | . 3 . Max Gunslinging Chain 1 | . 1 . Shots Hit Robots 84 | . 84 . Core Hits 26 | . 26 . Critical Kills . | . . . Critical Parts Destroyed . | . . . Critical Strikes . | . . . Melee Attacks . | . . . Impact . | . . . Slashing . | . . . Piercing . | . . . Sneak Attacks . | . . . Combat Hostiles . | . . . Follow-up Attacks . | . . . Damage Inflicted 1110 | . 1110 . Guns 1109 | . 1109 . Cannons . | . . . Explosions . | . . . Melee . | . . . Ramming 1 | . 1 . Kinetic 1109 | . 1109 . Thermal . | . . . Explosive . | . . . Electromagnetic . | . . . Impact . | . . . Slashing . | . . . Piercing . | . . . Highest Corruption 2 | . 2 . Average Corruption 2 | . 2 . Corruption Purged . | . . . Corruption Blocked . | . . . Effects 1 | . 1 . Energy Discharges 1 | . 1 . Overload Shots . | . . . Overflow Damage . | . . . Projectiles . | . . . Explosions . | . . . Melee . | . . . Knockbacks . | . . . Impact . | . . . Kinetic . | . . . Secondary . | . . . Self-Inflicted Damage . | . . . Shots . | . . . Rammed . | . . . Targets Rammed 1 | . 1 . Kicked 1 | . 1 . Crushed . | . . . Highest Temperature 5 | . 5 . Average Temperature 5 | . 5 . Received Heat Transfer 186 | . 186 . Siege Activations . | . . . Robots Corrupted . | . . . Combat Hostiles . | . . . Parts Fried . | . . . Impact Corruptions . | . . . Robots Melted . | . . . Combat Hostiles . | . . . Parts Melted . | . . . Heat Transferred . | . . . Parts Sabotaged . | . . . Parts Stolen . | . . . Parts Stripped . | . . . Power Chain Reactions . | . . . Missiles Intercepted . | . . . Alert | -11 -10 -9 ------- Run | Scr Mat Mat Peak Influence 219 | . 219 . Initial . | . . . Average 75 | . 83 . Maximum Alert Level 1 | . 1 . Low Security (%) 89 | 100 88 100 Level 1 10 | . 11 . Level 2 . | . . . Level 3 . | . . . Level 4 . | . . . Level 5 . | . . . High Security . | . . . Max Security . | . . . Squads Dispatched 1 | . 1 . Investigation . | . . . Extermination . | . . . Reinforcement 1 | . 1 . Assault . | . . . Garrison . | . . . Intercept . | . . . Searches Triggered . | . . . Construction Impeded . | . . . Haulers Reinforced . | . . . Active Scanning Responses . | . . . Cargo Convoy Interrupts . | . . . Stealth | -11 -10 -9 --------- Run | Scr Mat Mat Distress Signals 4 | . 4 . Communications Jammed . | . . . Distress Signals . | . . . Times Spotted 20 | . 18 2 Peak Tracking Total 5 | . 5 3 Tactical Retreats . | . . . Traps | -11 -10 -9 ------- Run | Scr Mat Mat Traps Triggered 1 | . 1 . Indirectly . | . . . Trap Hack Attempts . | . . . Triggered . | . . . Disarmed . | . . . Reprogrammed . | . . . Reused . | . . . Traps Extracted . | . . . Installed . | . . . Triggered . | . . . Machines | -11 -10 -9 ---------- Run | Scr Mat Mat Machines Disabled 1 | . 1 . Max in Single Turn 1 | . 1 . Machines Sabotaged . | . . . Garrisons Compromised . | . . . Overloaded Fab Kills . | . . . Hacking | -11 -10 -9 --------- Run | Scr Mat Mat Machines Accessed 4 | . 4 . Terminals 4 | . 4 . Fabricators . | . . . Repair Stations . | . . . Recycling Units . | . . . Scanalyzers . | . . . Garrison Access . | . . . Total Hacks 12 | . 12 . Successful 5 | . 5 . Failed 7 | . 7 . Catastrophic 2 | . 2 . Database Lockouts . | . . . Manual 10 | . 10 . Terminals 12 | . 12 . Fabricators . | . . . Repair Stations . | . . . Recycling Units . | . . . Scanalyzers . | . . . Garrison Access . | . . . Terminal Hacks 2 | . 2 . Unreport Threat 1 | . 1 . Locate Traps 1 | . 1 . Fabricator Hacks . | . . . Repair Station Hacks . | . . . Recycling Unit Hacks . | . . . Scanalyzer . | . . . Garrison Access Hacks . | . . . Unauthorized Hacks 3 | . 3 . Terminals 3 | . 3 . Botnet 3 | . 3 . Fabricators . | . . . Repair Stations . | . . . Recycling Units . | . . . Scanalyzers . | . . . Garrison Access . | . . . Data Cores Recovered . | . . . Used . | . . . Hacking Detections 4 | . 4 . Full Trace Events . | . . . Feedback Events . | . . . Feedback Blocked . | . . . Robot Schematics Acquired . | . . . Robots Built . | . . . Authchips . | . . . Time . | . . . Total Robot Build Rating . | . . . Part Schematics Acquired . | . . . Parts Built . | . . . Authchips . | . . . Time . | . . . Total Part Build Rating . | . . . Parts Repaired . | . . . Time . | . . . Parts Recycled . | . . . Recycled Matter . | . . . Retrieved Matter . | . . . Retrieved Components . | . . . Parts Scanalyzed . | . . . Part Schematics Acquired . | . . . Parts Damaged . | . . . Bothacking | -11 -10 -9 ------------ Run | Scr Mat Mat Used RIF Installer . | . . . Robots Hacked . | . . . Non-combat . | . . . Combat . | . . . Robot Hacks Applied . | . . . Relay Couplers Released . | . . . Fabnet Peak Effective % . | . . . Robots Rewired . | . . . Allies Hacked . | . . . Hacks Repelled . | . . . Allies | -11 -10 -9 -------- Run | Scr Mat Mat Total Allies . | . . . Largest Group . | . . . Highest-Rated Group . | . . . Highest-Rated Ally . | . . . Total Orders . | . . . Ally Attacks . | . . . Total Damage . | . . . Kills . | . . . Allies Corrupted . | . . . Allies Melted . | . . . Intel | -11 -10 -9 ------- Run | Scr Mat Mat Robot Analysis Total . | . . . Derelict Logs Recovered . | . . . Drone Launches . | . . . Drone Recoveries . | . . . Exploration | -11 -10 -9 ------------- Run | Scr Mat Mat Turns Passed 958 | 59 870 29 Spaces Moved 582 | 45 513 24 Core 3 | 3 . . Treads . | . . . Legs 579 | 42 513 24 Wheels . | . . . Hover . | . . . Flight . | . . . Fastest Speed 50 | 50 120 120 Average Speed 119 | 115 120 120 Slowest Speed 120 | 120 120 120 Overloaded Moves . | . . . Propulsion Burnouts . | . . . Robots Hopped . | . . . Cave-ins Triggered . | . . . Exploration Rate (%) 27 | 4 72 7 Regions Visited 2 Branch Regions . Pre-discovered Areas . | . . . Known Exits Taken . | . . . Unknown Exits Taken 2 | 1 1 . Scrap Searched . | . . . Spaces Dug . | . . . Terrain Destroyed . | . . . Melee . | . . . Projectile . | . . . AOE . | . . . Terrain Rammed . | . . . Walls Destroyed . | . . . Machines Disabled . | . . . Actions | -11 -10 -9 --------- Run | Scr Mat Mat Total 673 | 49 600 24 Wait . | . . . Move 580 | 44 512 24 Hop . | . . . Pick Up 2 | . 2 . Fast Attach 7 | 5 2 . Attach . | . . . Detach . | . . . Swap . | . . . Drop . | . . . Fire 83 | . 83 . Melee . | . . . Ram . | . . . Kick 1 | . 1 . Crush . | . . . Escape Stasis . | . . . Rewire . | . . . Trap . | . . . Miscellaneous . | . . . Route ------- -11/Scrapyard -10/Materials (discovered 2 exits: [*Mat x2]) -9/Materials History --------- Turn | Location | Event 1 | -11/Scrapyard | Upgraded with Propulsion slot (x1) 1 | -11/Scrapyard | Upgraded with Utility slot (x1) 1 | -11/Scrapyard | Upgraded with Weapon slot (x1) 4 | -11/Scrapyard | Discovered new exit (range 16) 60 | -11/Scrapyard | Entered Materials 300 | -10/Materials | Build established: Mutant 645 | -10/Materials | Discovered new exit (range 16) 763 | -10/Materials | Core integrity fell below 50% 876 | -10/Materials | Discovered new exit (range 9) 930 | -10/Materials | Entered another Materials area 931 | -9/Materials | Core integrity fell below 50% 932 | -9/Materials | Reached level 2 959 | -9/Materials | Self-destructed Last Messages --------------- 00904_ K-01 Serf cleans the Terminal. 00905_ Connecting with Terminal... >>Trojan(Botnet) Trojan loaded successfully. Testing... Terminal linked with 2 systems. Awaiting botnet instructions. >>Alert(Purge) Purged threat record, alert level lowered. 00908_ System corrupted: Energy discharge (-82). 00908_ U-05 Engineer lays Concrete. 00919_ Acquired 63 matter. 00920_ Acquired 42 matter. 00922_ Acquired 70 matter. 00923_ Acquired 35 matter. LOCATION=UNKNOWN GOAL=ESCAPE 00931_ T-07 Excavator is excavating. 00932_ Reached level 2. 00934_ T-07 Excavator is excavating. Map ----- +----------------------------------------------------+ | ?????????????????????????????????????????????????? | | ?????????????????????????????????????????????????? | | ?????????????????????????????????????????????????? | | ?????????????????????????????????????????????????? | | ?????????????????????????????????????????????????? | | ?????????????????????????????????????????????????? | | ?????????????????????????????????????????????????? | | ????????????????????????????####?????????????????? | | ??????????????????????????? ?#####??????????? | | ?????????????????????????? """?# #??????????? | | ?????????????????????????# """ # ###????????? | | ?????????????????????????# """ # # #????????? | | ?????????????????????????# + ?????????? | | ?????????????????????????# # ##?????????? | | ?????????????????????????# " " # #??????????? | | ?????????????????????????# "R" ?# #??????????? | | ????????????????????#????# """ ?# #??????????? | | ????????????????????# ?????######## #####??????? | | ????????????????????# ?????# # !!#??????? | | ????????????????????# s????#]/ + !!#??????? | | ????????????????????# ????#]/ # ==#??????? | | ????????????????????# ???#] # ==#??????? | | ???????????????????## s???# # //#??????? | | ???????????????????# t ??? ?# //#??????? | | ???????????????????# #####+#### #####??????? | | ???????????????????+ T @ #??????????? | | ???????????????????# #####+#### #??????????? | | ???????????????????# ?????????# #??????????? | | ???????????????????###r#??????????# #??????????? | | ?????????????????????# ???????????# #??????????? | | ?????????????????????#????????????# #??????????? | | ??????????????????????????????????# #??????????? | | ??????????????????????????????????# #??????????? | | ??????????????????????????????????# #??????????? | | ??????????????????????????????????# ??????????? | | ??????????????????????????????????? ??????????? | | ??????????????????????????????????? ??????????? | | ???????????????????????????????????####??????????? | | ?????????????????????????????????????????????????? | | ?????????????????????????????????????????????????? | | ?????????????????????????????????????????????????? | | ?????????????????????????????????????????????????? | | ?????????????????????????????????????????????????? | | ?????????????????????????????????????????????????? | | ?????????????????????????????????????????????????? | | ?????????????????????????????????????????????????? | | ?????????????????????????????????????????????????? | | ?????????????????????????????????????????????????? | | ?????????????????????????????????????????????????? | | ?????????????????????????????????????????????????? | +----------------------------------------------------+ Best States ------------- Heat Dissipation 25 Energy Generation 10 Energy Capacity 250 Matter Stores 500 Matter Capacity 500 Sight Range 16 Terrain Scan Density 10 Evasion (%) 55 Item Schematics ----------------- None Robot Schematics ------------------ None Fabricated ------------ Nothing Alien Tech Used ----------------- None Achievements -------------- None Challenges ------------ None RPGLIKE | -11 -10 -9 --------- Run | Scr Mat Mat Levels Raised 1 | . . 1 XP Earned 5865 | 3000 1365 1500 XP Spent 3000 | 3000 . . Upgrades 6 | 6 . . Propulsion Slot 1 | 1 . . Utility Slot 1 | 1 . . Weapon Slot 1 | 1 . . Inventory Capacity 3 | 3 . . Protomatter Created 12 | . 12 . Protomatter Decayed 12 | . 12 . Game ------ Seed MobileBottomlessMace Manual? 0 Play Time 00:05:34 Cumulative 113.5 hours Start 2022.05.01 @ 16:23:07 End 2022.05.01 @ 16:28:28 Sessions 1 Manual Loads 0 Difficulty Rogue Special Mode Winter2019/RPGLIKE Game No. 74 Rogue 35 Adventurer 5 Explorer 34 Win Type - Total 19 Types 10/0/4/4/1/0/0/0/0 Lore% 71 Gallery% 70 Achievement% 76 Wizard Run 0 Options --------- ASCII 0 Keyboard 0 Movement Mouse Keybinds 0 Fullscreen 1 Font 12/Terminus Map View 83x54 Tactical HUD 1 Map Filters NONE Filters NONE Steam 1 RUN: 72ccfe27-90d8-4875-ab55-125a317737d2